bitfinex/quotes_BTCUSD_20220120
["timestamp","ask_amount","ask_price","bid_price","bid_amount"]
[1642663650838,1.04040052,41966.0,41965.0,0.00750871]
[1642663651884,1.4047336,41966.0,41965.0,0.00750871]
[1642663652084,1.3877336,41966.0,41965.0,0.00750871]
[1642663652783,1.3987336,41966.0,41965.0,0.00750871]
[1642663653789,0.43440052,41966.0,41965.0,0.00750871]
[1642663654088,0.42340052,41966.0,41965.0,0.00750871]
[1642663654485,0.42213722,41966.0,41965.0,0.00750871]
[1642663654687,0.43313722,41966.0,41965.0,0.00750871]
[1642663655333,0.80294311,41966.0,41965.0,0.00750871]
[1642663656130,0.42213722,41966.0,41965.0,0.00750871]
[1642663656731,0.43313722,41966.0,41965.0,0.00750871]
[1642663658135,0.161223,41966.0,41965.0,0.00750871]
[1642663658531,0.061223,41966.0,41965.0,0.00750871]
[1642663658731,0.072223,41966.0,41965.0,0.00750871]
[1642663659984,0.372223,41966.0,41965.0,0.00750871]
[1642663660386,0.172223,41966.0,41965.0,0.00750871]
[1642663660586,0.161223,41966.0,41965.0,0.00750871]
[1642663660791,0.172223,41966.0,41965.0,0.00750871]
[1642663661588,0.072223,41966.0,41965.0,0.00750871]
[1642663661991,0.572223,41966.0,41965.0,0.00750871]
[1642663662192,0.561223,41966.0,41965.0,0.00750871]
[1642663662391,0.661223,41966.0,41965.0,0.00750871]
[1642663662841,0.41222473,41966.0,41965.0,0.00750871]
[1642663663042,0.56222473,41966.0,41965.0,0.00750871]
[1642663664041,0.55828957,41966.0,41965.0,0.00750871]
[1642663664840,0.56928957,41966.0,41965.0,0.00750871]
[1642663666045,0.55828957,41966.0,41965.0,0.00750871]
[1642663666784,0.56928957,41966.0,41965.0,0.00750871]
[1642663668591,0.55828957,41966.0,41965.0,0.00750871]
[1642663668785,0.56928957,41966.0,41965.0,0.00750871]
[1642663670087,0.21821533,41966.0,41965.0,0.00750871]
[1642663670542,0.11821533,41966.0,41965.0,0.00750871]
[1642663670743,0.13521533,41966.0,41965.0,0.00750871]
[1642663670943,0.08521533,41966.0,41965.0,0.00750871]
[1642663671155,0.02406484,41966.0,41965.0,0.00750871]
[1642663672142,0.00706484,41966.0,41965.0,0.00750871]
[1642663672743,0.01806484,41966.0,41965.0,0.00750871]
[1642663672945,0.01806484,41966.0,41965.0,0.25750871]
[1642663674186,0.00706484,41966.0,41965.0,0.25750871]
[1642663674786,0.01706484,41966.0,41965.0,0.25750871]
[1642663675188,0.01706484,41966.0,41965.0,0.53753473]
[1642663676591,0.01706484,41966.0,41965.0,0.28753473]
[1642663676791,0.03306484,41966.0,41965.0,0.29753473]
[1642663677191,0.02306484,41966.0,41965.0,0.29753473]
[1642663678234,0.00706484,41966.0,41965.0,0.28753473]
[1642663678835,0.00706484,41966.0,41965.0,0.01750871]
[1642663679040,0.33497807,41973.0,41965.0,0.01750871]
[1642663679235,0.05,41972.0,41965.0,0.01750871]
[1642663679436,0.05010314,41972.0,41965.0,0.01750871]
[1642663679736,8.595e-05,41971.0,41967.0,0.00104201]
[1642663680134,6.876e-05,41970.0,41967.0,0.00104201]
[1642663680539,8.595e-05,41971.0,41967.0,0.00104201]
[1642663680737,8.595e-05,41971.0,41965.0,0.00750871]
[1642663680937,0.05306876,41970.0,41967.0,0.006]
[1642663681338,0.053,41970.0,41968.0,0.32628313]
[1642663682195,8.595e-05,41971.0,41968.0,0.32628313]
[1642663682494,6.876e-05,41970.0,41968.0,0.32628313]
[1642663682893,0.055,41971.0,41968.0,0.33128313]
[1642663683295,6.876e-05,41970.0,41968.0,0.33128313]
[1642663684101,0.00712723,41970.0,41968.0,0.32628313]
[1642663684998,0.03212723,41970.0,41968.0,0.33128313]
[1642663685196,0.03212723,41970.0,41968.0,0.005]
[1642663686034,0.03212723,41970.0,41967.0,0.00104202]
[1642663686232,0.00712723,41970.0,41967.0,0.34688029]
[1642663686756,0.00712723,41970.0,41967.0,0.34583827]
[1642663686932,0.02712723,41970.0,41967.0,0.35183827]
[1642663687533,0.02712723,41970.0,41967.0,0.006]
[1642663688136,0.00712723,41970.0,41966.0,0.00104204]
[1642663688535,0.00712723,41970.0,41966.0,0.2745144]
[1642663688736,0.00712723,41970.0,41967.0,0.24]
[1642663688937,0.01912723,41970.0,41967.0,0.24]
[1642663690093,0.00712723,41970.0,41967.0,0.24]
[1642663690793,0.00712723,41970.0,41967.0,0.247]
[1642663691001,0.02112723,41970.0,41967.0,0.247]
[1642663692195,0.00712723,41970.0,41967.0,0.24]
[1642663692838,0.03212723,41970.0,41967.0,0.246]
[1642663694239,0.00712723,41970.0,41967.0,0.24]
[1642663694838,0.04012723,41970.0,41967.0,0.245]
[1642663696244,0.00712723,41970.0,41967.0,0.24]
[1642663696987,0.03212723,41970.0,41967.0,0.246]
[1642663697989,0.14171049,41970.0,41967.0,0.246]
[1642663698789,0.11671049,41970.0,41967.0,0.24]
[1642663698992,0.14271049,41970.0,41967.0,0.244]
[1642663699796,0.09271049,41970.0,41967.0,0.244]
[1642663700835,0.06671049,41970.0,41967.0,0.24]
[1642663701036,0.08771049,41970.0,41967.0,0.244]
[1642663701239,0.02812723,41970.0,41967.0,0.244]
[1642663702239,0.00712723,41970.0,41967.0,0.24]
[1642663703041,0.06312723,41970.0,41967.0,0.243]
[1642663704787,0.00712723,41970.0,41967.0,0.24]
[1642663704993,0.05312723,41970.0,41967.0,0.241]
[1642663706287,0.00712723,41970.0,41967.0,0.24]
[1642663706887,0.05912723,41970.0,41967.0,0.241]
[1642663707692,0.05831803,41970.0,41967.0,0.241]
[1642663708140,0.00631803,41970.0,41967.0,0.24]
[1642663708934,0.03831803,41970.0,41967.0,0.242]
[1642663710136,0.03831803,41970.0,41967.0,0.24]
[1642663710343,0.00631803,41970.0,41967.0,0.24]
[1642663710938,0.05031803,41970.0,41967.0,0.242]
[1642663712293,0.00631803,41970.0,41967.0,0.24]
[1642663712897,0.00631803,41970.0,41967.0,0.243]
[1642663713091,0.03731803,41970.0,41967.0,0.243]
[1642663713699,0.03731803,41970.0,41968.0,0.31448428]
[1642663714093,0.03731803,41970.0,41967.0,0.243]
[1642663714094,0.03106876,41970.0,41969.0,1.084577]
[1642663714295,6.876e-05,41970.0,41969.0,1.084577]
[1642663714692,6.876e-05,41970.0,41969.0,0.64043331]
[1642663714893,6.876e-05,41970.0,41969.0,0.64643331]
[1642663715093,0.04506876,41970.0,41969.0,0.64643331]
[1642663716148,0.04506876,41970.0,41969.0,0.64043331]
[1642663716345,6.876e-05,41970.0,41969.0,0.64043331]
[1642663717046,6.876e-05,41970.0,41969.0,0.65643331]
[1642663718345,6.876e-05,41970.0,41969.0,0.64043331]
[1642663718750,6.876e-05,41970.0,41969.0,0.92661175]
[1642663718950,6.876e-05,41970.0,41969.0,0.94261175]
[1642663719989,6.876e-05,41970.0,41969.0,0.28380631]
[1642663720187,6.876e-05,41970.0,41969.0,0.26780631]
[1642663720387,6.876e-05,41970.0,41967.0,0.241042]
[1642663720388,6.876e-05,41970.0,41967.0,0.24]
[1642663720590,6.876e-05,41970.0,41967.0,0.241042]
[1642663720989,0.00506876,41970.0,41967.0,0.256042]
[1642663721488,0.00506876,41970.0,41967.0,0.255]
[1642663722392,6.876e-05,41970.0,41967.0,0.24]
[1642663723141,6.876e-05,41970.0,41967.0,0.266]
[1642663723142,0.00106876,41970.0,41967.0,0.266]
[1642663724143,0.00106876,41970.0,41967.0,0.24]
[1642663724343,6.876e-05,41970.0,41967.0,0.24]
[1642663725060,0.00406876,41970.0,41967.0,0.261]
[1642663726343,6.876e-05,41970.0,41967.0,0.24]
[1642663727002,0.00106876,41970.0,41967.0,0.283]
[1642663728302,6.876e-05,41970.0,41967.0,0.24]
[1642663729103,0.00406876,41970.0,41967.0,0.265]
[1642663730363,6.876e-05,41970.0,41967.0,0.24]
[1642663730962,0.00506876,41970.0,41967.0,0.26]
[1642663732163,6.876e-05,41970.0,41967.0,0.24]
[1642663732966,0.00306876,41970.0,41967.0,0.264]
[1642663734195,6.876e-05,41970.0,41967.0,0.24]
[1642663734994,0.00306876,41970.0,41967.0,0.262]
[1642663736195,0.00306876,41970.0,41967.0,0.24]
[1642663736196,6.876e-05,41970.0,41967.0,0.24]
[1642663736995,0.00206876,41970.0,41967.0,0.262]
[1642663739048,0.00506876,41970.0,41967.0,0.283]
[1642663739243,0.00306876,41970.0,41967.0,0.261]
[1642663740345,6.876e-05,41970.0,41967.0,0.24]
[1642663741151,0.00306876,41970.0,41967.0,0.259]
[1642663742390,6.876e-05,41970.0,41967.0,0.24]
[1642663742791,0.05964981,41970.0,41967.0,0.24]
[1642663742992,0.06564981,41970.0,41967.0,0.259]
[1642663743992,0.18481681,41970.0,41967.0,0.259]
[1642663744391,0.00606876,41970.0,41967.0,0.259]
[1642663744991,0.00506876,41970.0,41967.0,0.265]
[1642663746241,6.876e-05,41970.0,41967.0,0.24]
[1642663747143,0.00306876,41970.0,41967.0,0.261]
[1642663748345,6.876e-05,41970.0,41967.0,0.24]
[1642663749187,0.00306876,41970.0,41967.0,0.261]
[1642663750286,6.876e-05,41970.0,41967.0,0.24]
[1642663751090,0.00406876,41970.0,41967.0,0.26]
[1642663752388,6.876e-05,41970.0,41967.0,0.24]
[1642663753044,0.00406876,41970.0,41967.0,0.26]
[1642663754246,6.876e-05,41970.0,41967.0,0.24]
[1642663755045,0.00606876,41970.0,41967.0,0.256]
[1642663756246,6.876e-05,41970.0,41967.0,0.24]
[1642663757093,0.00506876,41970.0,41967.0,0.256]
[1642663758294,6.876e-05,41970.0,41967.0,0.24]
[1642663759098,0.00506876,41970.0,41967.0,0.256]
[1642663759494,0.00496543,41970.0,41967.0,0.256]
[1642663760102,0.00496543,41970.0,41969.0,1.07130702]
[1642663760547,0.00496543,41970.0,41969.0,1.45588402]
[1642663760940,0.059564,41975.0,41969.0,1.45588402]
[1642663761150,0.059564,41975.0,41969.0,1.08630702]
[1642663761344,6.876e-05,41974.0,41969.0,1.08630702]
[1642663762446,6.876e-05,41974.0,41969.0,1.08734894]
[1642663763044,0.00806876,41974.0,41969.0,1.08434894]
[1642663763445,0.00806876,41974.0,41969.0,1.08330702]
[1642663763645,0.00806876,41974.0,41969.0,1.08434894]
[1642663764296,6.876e-05,41974.0,41969.0,1.07234894]
[1642663764695,6.876e-05,41974.0,41969.0,1.07130702]
[1642663764898,6.876e-05,41974.0,41973.0,1.28442005]
[1642663765107,6.876e-05,41974.0,41973.0,1.31257005]
[1642663765108,0.00806876,41974.0,41973.0,1.31257005]
[1642663765308,0.00806876,41974.0,41973.0,1.76930705]
[1642663766498,6.876e-05,41974.0,41973.0,1.74514142]
[1642663766698,6.876e-05,41974.0,41973.0,1.31072137]
[1642663767098,6.876e-05,41974.0,41973.0,1.32572137]
[1642663768046,0.04963176,41976.0,41974.0,1.60882375]
[1642663768246,0.059559,41980.0,41975.0,0.28361509]
[1642663768448,0.00109514,41979.0,41976.0,0.71240375]
[1642663768646,0.00109514,41979.0,41976.0,0.71249812]
[1642663768647,6.876e-05,41978.0,41976.0,0.71249812]
[1642663768947,6.876e-05,41978.0,41977.0,0.71912946]
[1642663769146,6.876e-05,41978.0,41977.0,1.10380083]
[1642663769649,6.876e-05,41978.0,41977.0,1.33733017]
[1642663771246,6.876e-05,41978.0,41977.0,1.35633017]
[1642663771446,6.876e-05,41978.0,41977.0,1.12280083]
[1642663771697,0.87719917,41977.0,41976.0,0.37572675]
[1642663771892,0.87719917,41977.0,41976.0,1.05270318]
[1642663773093,0.87719917,41977.0,41976.0,1.07470318]
[1642663773893,0.87719917,41977.0,41976.0,1.08665318]
[1642663774094,0.87719917,41977.0,41976.0,1.08789779]
[1642663774294,0.87719917,41977.0,41976.0,1.06589779]
[1642663775097,0.87719917,41977.0,41976.0,1.08189779]
[1642663775753,0.87719917,41977.0,41976.0,0.78948773]
[1642663775949,0.87719917,41977.0,41976.0,0.74158773]
[1642663776353,0.87719917,41977.0,41976.0,0.72558773]
[1642663777149,0.87719917,41977.0,41976.0,0.74158773]
[1642663778351,0.87719917,41977.0,41976.0,0.72558773]
[1642663779197,0.87719917,41977.0,41976.0,0.74158773]
[1642663780000,0.87719917,41977.0,41976.0,0.98158773]
[1642663780400,0.87719917,41977.0,41976.0,0.96558773]
[1642663781198,0.87719917,41977.0,41976.0,0.98358773]
[1642663782401,0.87719917,41977.0,41976.0,0.96558773]
[1642663782845,0.87719917,41977.0,41976.0,1.18273073]
[1642663783248,0.87719917,41977.0,41976.0,1.20073073]
[1642663783948,0.87719917,41977.0,41976.0,0.98358773]
[1642663784449,0.87719917,41977.0,41976.0,0.96558773]
[1642663785251,0.87719917,41977.0,41976.0,0.59911573]
[1642663785451,0.87719917,41977.0,41976.0,0.81905911]
[1642663786057,0.87719917,41977.0,41976.0,1.10617357]
[1642663786254,0.87719917,41977.0,41976.0,1.49064557]
[1642663786452,0.87719917,41977.0,41976.0,1.47264557]
[1642663787095,0.87719917,41977.0,41976.0,1.49064557]
[1642663788393,0.87719917,41977.0,41976.0,1.47264557]
[1642663789095,0.87719917,41977.0,41976.0,1.49064557]
[1642663790550,0.87719917,41977.0,41976.0,1.47264557]
[1642663791257,0.87719917,41977.0,41976.0,1.49064557]
[1642663791552,6.876e-05,41978.0,41977.0,0.85]
[1642663791757,6.876e-05,41978.0,41977.0,1.82935788]
[1642663791953,6.876e-05,41978.0,41977.0,1.83062013]
[1642663792154,6.876e-05,41978.0,41977.0,2.10140009]
[1642663792353,6.876e-05,41978.0,41977.0,2.20140009]
[1642663792953,6.876e-05,41978.0,41977.0,2.10140009]
[1642663793156,6.876e-05,41978.0,41977.0,2.11240009]
[1642663794094,6.876e-05,41978.0,41977.0,2.11479304]
[1642663794494,6.876e-05,41978.0,41977.0,2.10379304]
[1642663794895,6.876e-05,41978.0,41977.0,2.20379304]
[1642663795297,6.876e-05,41978.0,41977.0,2.21879304]
[1642663795600,0.26955695,41987.0,41979.0,0.384472]
[1642663795799,0.26955695,41987.0,41984.0,0.00124772]
[1642663795998,0.26955695,41987.0,41986.0,1.234472]
[1642663796204,0.26955695,41987.0,41986.0,1.70042767]
[1642663796401,0.26971166,41987.0,41986.0,1.70042767]
[1642663796597,0.26971166,41987.0,41986.0,2.41379145]
[1642663796797,0.26971166,41987.0,41986.0,2.68964831]
[1642663797205,0.26471166,41987.0,41986.0,1.83964831]
[1642663797399,0.26471166,41987.0,41986.0,1.85264831]
[1642663798043,0.26471166,41987.0,41986.0,1.66866264]
[1642663798243,0.26471166,41987.0,41986.0,1.35070134]
[1642663798642,0.26471166,41987.0,41986.0,1.33770134]
[1642663798948,0.26471166,41987.0,41986.0,1.34007088]
[1642663799142,0.26471166,41987.0,41986.0,1.52183917]
[1642663799143,0.26391166,41987.0,41986.0,1.52183917]
[1642663799343,0.26391166,41987.0,41986.0,1.53583917]
[1642663799941,0.26391166,41987.0,41986.0,1.35407088]
[1642663800144,0.26391166,41987.0,41986.0,1.25407088]
[1642663800542,0.26391166,41987.0,41986.0,1.37363021]
[1642663800749,0.26391166,41987.0,41986.0,1.07477088]
[1642663800941,0.26391166,41987.0,41986.0,1.31477088]
[1642663801344,0.26391166,41987.0,41986.0,1.32677088]
[1642663801610,0.26391166,41987.0,41986.0,1.31482088]
[1642663802698,0.26391166,41987.0,41986.0,1.30282088]
[1642663803097,0.26391166,41987.0,41986.0,1.33094088]
[1642663803297,0.26391166,41987.0,41986.0,1.34394088]
[1642663805346,0.26391166,41987.0,41986.0,1.31282088]
[1642663805547,0.26391166,41987.0,41986.0,1.26492088]
[1642663806548,0.26391166,41987.0,41986.0,1.25492088]
[1642663807349,0.26391166,41987.0,41986.0,1.29504086]
[1642663807551,0.26391166,41987.0,41986.0,1.26692086]
[1642663808651,0.26391166,41987.0,41986.0,1.25492086]
[1642663809094,0.26391166,41987.0,41986.0,1.2537785]
[1642663809302,0.27648469,41987.0,41986.0,1.2647785]
[1642663809501,0.28905772,41987.0,41986.0,1.2647785]
[1642663810497,0.28905772,41987.0,41986.0,1.2537785]
[1642663811297,0.28905772,41987.0,41986.0,1.2637785]
[1642663812597,0.28905772,41987.0,41986.0,1.2537785]
[1642663813246,0.28905772,41987.0,41986.0,1.2637785]
[1642663814449,0.28905772,41987.0,41986.0,0.63579353]
[1642663814656,0.33905772,41987.0,41986.0,0.24132153]
[1642663814853,0.38695772,41987.0,41986.0,0.24132153]
[1642663815250,0.60522007,41987.0,41986.0,0.24132153]
[1642663815449,0.60522007,41987.0,41986.0,0.24632153]
[1642663815855,0.65522007,41987.0,41986.0,0.24632153]
[1642663816150,0.43695772,41987.0,41986.0,0.24632153]
[1642663816595,0.43695772,41987.0,41986.0,0.24132153]
[1642663816797,0.82142972,41987.0,41986.0,0.24132153]
[1642663816997,0.97981493,41987.0,41986.0,0.24132153]
[1642663817397,1.21764806,41987.0,41986.0,0.24332153]
[1642663817800,1.05926285,41987.0,41986.0,0.24332153]
[1642663818599,1.05926285,41987.0,41986.0,0.24132153]
[1642663819200,0.82142972,41987.0,41986.0,0.24132153]
[1642663820451,0.81642972,41987.0,41986.0,0.24132153]
[1642663820850,1.04899312,41987.0,41986.0,0.24132153]
[1642663821448,1.04899312,41987.0,41986.0,0.24232153]
[1642663822550,1.04899312,41987.0,41986.0,0.24132153]
[1642663822950,0.81642972,41987.0,41986.0,0.24132153]
[1642663823150,0.05955899,41984.0,41978.0,0.00128119]
[1642663823351,0.059559,41983.0,41978.0,0.00128119]
[1642663823551,0.05964495,41983.0,41979.0,0.384472]
[1642663823752,0.01257303,41980.0,41979.0,0.384472]
[1642663824619,0.01257303,41980.0,41979.0,0.66945303]
[1642663825420,0.01257303,41980.0,41979.0,0.68345303]
[1642663826019,0.01257303,41980.0,41979.0,0.398472]
[1642663826619,0.01257303,41980.0,41979.0,0.384472]
[1642663827421,0.01257303,41980.0,41979.0,0.398472]
[1642663828546,0.01257303,41980.0,41979.0,0.384472]
[1642663829146,0.02514606,41980.0,41979.0,0.384472]
[1642663829347,0.02514606,41980.0,41979.0,0.397472]
[1642663830747,0.02514606,41980.0,41979.0,0.624472]
[1642663831249,0.07514606,41980.0,41979.0,0.24]
[1642663831623,0.12514606,41980.0,41979.0,0.253]
[1642663832626,0.12514606,41980.0,41979.0,0.637472]
[1642663832829,0.07514606,41980.0,41979.0,0.637472]
[1642663833023,0.02514606,41980.0,41979.0,0.624472]
[1642663833524,0.02514606,41980.0,41979.0,0.639472]
[1642663834328,0.07123883,41981.0,41980.0,0.834472]
[1642663834524,0.10955823,41981.0,41980.0,0.834472]
[1642663834923,0.05955823,41981.0,41980.0,0.834472]
[1642663835123,0.10955823,41981.0,41980.0,0.834472]
[1642663835353,0.10955823,41981.0,41980.0,0.847472]
[1642663836151,0.05955823,41981.0,41980.0,0.847472]
[1642663836351,0.05955823,41981.0,41980.0,0.397472]
[1642663836550,0.05955823,41981.0,41980.0,0.384472]
[1642663836953,6.876e-05,41982.0,41980.0,0.6612154]
[1642663837163,6.876e-05,41982.0,41981.0,1.14806896]
[1642663837352,6.876e-05,41982.0,41981.0,1.53254096]
[1642663838151,6.876e-05,41982.0,41981.0,1.89612271]
[1642663838551,6.876e-05,41982.0,41981.0,1.92426271]
[1642663839196,6.876e-05,41982.0,41981.0,1.89612271]
[1642663839397,6.876e-05,41982.0,41981.0,1.54554096]
[1642663840198,6.876e-05,41982.0,41981.0,1.66723121]
[1642663840399,6.876e-05,41982.0,41981.0,0.84537121]
[1642663840999,6.876e-05,41982.0,41981.0,0.72368096]
[1642663841200,6.876e-05,41982.0,41981.0,0.81614051]
[1642663841401,6.876e-05,41982.0,41981.0,0.82914051]
[1642663841802,6.876e-05,41982.0,41981.0,0.70745096]
[1642663842702,6.876e-05,41982.0,41981.0,0.69445096]
[1642663843449,6.876e-05,41982.0,41981.0,0.83014017]
[1642663844449,6.876e-05,41982.0,41981.0,0.70845096]
[1642663844651,6.876e-05,41982.0,41981.0,0.69445096]
[1642663845451,6.876e-05,41982.0,41981.0,0.83014037]
[1642663846698,6.876e-05,41982.0,41981.0,0.81614037]
[1642663847498,6.876e-05,41982.0,41981.0,0.82814037]
[1642663848701,6.876e-05,41982.0,41981.0,0.81614037]
[1642663849100,6.876e-05,41982.0,41981.0,0.80423037]
[1642663849501,6.876e-05,41982.0,41981.0,0.81723037]
[1642663850356,6.876e-05,41982.0,41981.0,0.83346037]
[1642663850552,6.876e-05,41982.0,41981.0,0.82046037]
[1642663851451,6.876e-05,41982.0,41981.0,0.83246037]
[1642663852751,6.876e-05,41982.0,41981.0,0.82046037]
[1642663853558,6.876e-05,41982.0,41981.0,0.83346037]
[1642663854897,6.876e-05,41982.0,41981.0,0.52239141]
[1642663855496,6.876e-05,41982.0,41981.0,0.411702]
[1642663855701,6.876e-05,41982.0,41981.0,0.53339079]
[1642663856496,6.876e-05,41982.0,41981.0,0.411702]
[1642663856697,6.876e-05,41982.0,41981.0,0.400702]
[1642663857396,6.876e-05,41982.0,41981.0,0.396472]
[1642663858658,6.876e-05,41982.0,41981.0,0.384472]
[1642663859054,6.876e-05,41982.0,41981.0,0.50616185]
[1642663859453,6.876e-05,41982.0,41981.0,0.51616185]
[1642663860655,6.876e-05,41982.0,41981.0,0.50616185]
[1642663861456,6.876e-05,41982.0,41981.0,0.51516185]
[1642663862703,6.876e-05,41982.0,41981.0,0.50616185]
[1642663863506,6.876e-05,41982.0,41981.0,0.51516185]
[1642663865347,6.876e-05,41982.0,41981.0,0.50616185]
[1642663865555,6.876e-05,41982.0,41981.0,0.51416185]
[1642663866650,6.876e-05,41982.0,41981.0,0.392472]
[1642663866852,6.876e-05,41982.0,41981.0,0.384472]
[1642663867053,6.876e-05,41982.0,41981.0,0.50616368]
[1642663867453,6.876e-05,41982.0,41981.0,0.393472]
[1642663868254,6.876e-05,41982.0,41981.0,0.51516344]
[1642663868452,6.876e-05,41982.0,41981.0,0.393472]
[1642663868653,6.876e-05,41982.0,41981.0,0.384472]
[1642663869300,6.876e-05,41982.0,41981.0,0.38384465]
[1642663869500,6.876e-05,41982.0,41981.0,0.39384465]
[1642663870802,6.876e-05,41982.0,41981.0,0.38384465]
[1642663871002,6.876e-05,41982.0,41979.0,0.24]
[1642663871202,0.05963082,41982.0,41979.0,0.24]
[1642663871604,0.05963082,41982.0,41979.0,0.25]
[1642663872402,0.10963082,41982.0,41979.0,0.25]
[1642663872603,0.15963082,41982.0,41979.0,0.25]
[1642663872852,0.15963082,41982.0,41979.0,0.24]
[1642663873252,0.05963082,41982.0,41979.0,0.24]
[1642663873453,0.05963082,41982.0,41979.0,0.249]
[1642663873651,0.15963082,41982.0,41980.0,0.384444]
[1642663874052,0.15963082,41982.0,41979.0,0.249]
[1642663874751,0.15963082,41982.0,41979.0,0.24]
[1642663875154,0.10969148,41981.0,41979.0,0.24]
[1642663875553,0.10969148,41981.0,41980.0,0.384444]
[1642663875752,0.10963082,41982.0,41980.0,0.384444]
[1642663877004,0.05,41981.0,41980.0,0.384444]
[1642663877398,0.1,41981.0,41980.0,0.384444]
[1642663877597,0.1,41981.0,41980.0,0.394444]
[1642663878801,0.05,41981.0,41980.0,0.384444]
[1642663879000,0.10963082,41982.0,41980.0,0.384444]
[1642663879600,0.10963082,41982.0,41980.0,0.395444]
[1642663880853,0.05,41981.0,41980.0,0.384444]
[1642663881549,0.05,41981.0,41980.0,0.396444]
[1642663882849,0.05,41981.0,41980.0,0.384444]
[1642663883049,0.15455334,41981.0,41980.0,0.384444]
[1642663883250,0.15455334,41981.0,41979.0,0.24]
[1642663883554,0.15455334,41981.0,41980.0,0.012]
[1642663883749,0.05,41981.0,41980.0,0.012]
[1642663883950,0.1545534,41981.0,41980.0,0.012]
[1642663884809,0.1545534,41981.0,41979.0,0.24]
[1642663885209,0.05,41981.0,41979.0,0.24]
[1642663885609,0.05,41981.0,41979.0,0.252]
[1642663887411,0.1,41981.0,41979.0,0.24]
[1642663887711,0.1,41981.0,41979.0,0.253]
[1642663888755,0.05,41981.0,41979.0,0.24]
[1642663889153,0.11072507,41982.0,41979.0,0.24]
[1642663889555,0.10963082,41982.0,41979.0,0.252]
[1642663889758,0.05,41981.0,41979.0,0.252]
[1642663891357,0.05,41981.0,41979.0,0.24]
[1642663891602,0.05,41981.0,41979.0,0.253]
[1642663892005,0.05,41981.0,41980.0,0.384444]
[1642663893606,0.05,41981.0,41980.0,0.396444]
[1642663894606,0.05,41981.0,41980.0,0.408354]
[1642663894804,0.10963082,41982.0,41980.0,0.408354]
[1642663895008,0.10963082,41982.0,41980.0,0.396354]
[1642663895453,0.05955494,41982.0,41981.0,0.60820429]
[1642663895660,0.119086,41989.0,41983.0,0.38567804]
[1642663895855,0.13117804,41990.0,41989.0,0.00125276]
[1642663896056,0.25,41991.0,41990.0,1.05804052]
[1642663896258,0.25,41991.0,41990.0,1.44248452]
[1642663896454,0.25015471,41991.0,41990.0,1.99444772]
[1642663896857,0.24939471,41991.0,41990.0,1.99444772]
[1642663897254,0.24939471,41991.0,41990.0,1.14444772]
[1642663897658,0.24939471,41991.0,41990.0,1.15444772]
[1642663897853,0.24939471,41991.0,41990.0,1.46017089]
[1642663898057,0.29939471,41991.0,41990.0,1.46017089]
[1642663898854,0.29939471,41991.0,41990.0,1.45017089]
[1642663899101,0.29939471,41991.0,41990.0,0.93945246]
[1642663899304,0.29939471,41991.0,41990.0,0.63372929]
[1642663899502,0.29939471,41991.0,41990.0,0.91540031]
[1642663899703,0.29939471,41991.0,41990.0,0.92540031]
[1642663900408,0.29939471,41991.0,41990.0,1.17052731]
[1642663900605,0.29939471,41991.0,41990.0,1.17213094]
[1642663901006,0.29939471,41991.0,41990.0,1.29027094]
[1642663901007,0.24939471,41991.0,41990.0,1.29027094]
[1642663901605,0.24939471,41991.0,41990.0,1.30127094]
[1642663902206,0.24939471,41991.0,41990.0,1.54127094]
[1642663902405,0.24939471,41991.0,41990.0,1.29701764]
[1642663902852,0.24939471,41991.0,41990.0,1.28601764]
[1642663903554,0.24939471,41991.0,41990.0,1.30101764]
[1642663903753,0.24939471,41991.0,41990.0,1.01686929]
[1642663903953,0.24939471,41991.0,41990.0,0.91562776]
[1642663904154,0.29939471,41991.0,41990.0,0.53118376]
[1642663904954,0.29939471,41991.0,41990.0,0.51618376]
[1642663905564,0.29939471,41991.0,41990.0,0.52918376]
[1642663906599,0.29939471,41991.0,41990.0,0.28107493]
[1642663907000,0.29939471,41991.0,41990.0,0.26807493]
[1642663907201,0.29939471,41991.0,41990.0,0.24]
[1642663907403,0.34939471,41991.0,41990.0,0.24]
[1642663907700,0.29939471,41991.0,41988.0,0.14876]
[1642663907901,0.41848847,41991.0,41988.0,0.14876]
[1642663908105,0.00013752,41990.0,41988.0,0.14876]
[1642663908503,0.00012033,41989.0,41988.0,0.14876]
[1642663909106,0.58417419,41991.0,41988.0,0.74876]
[1642663909403,0.58417419,41991.0,41988.0,0.14876]
[1642663909703,0.58417419,41991.0,41988.0,0.16076]
[1642663910002,0.58308005,41991.0,41988.0,0.16076]
[1642663910662,1.00308005,41991.0,41988.0,0.16076]
[1642663910857,1.00308005,41991.0,41988.0,0.14876]
[1642663911461,1.00308005,41991.0,41987.0,0.01191]
[1642663911659,1.00308005,41991.0,41988.0,0.011]
[1642663912859,1.00308005,41991.0,41987.0,0.24]
[1642663913664,1.00417419,41991.0,41987.0,0.251]
[1642663914704,1.00308005,41991.0,41987.0,0.251]
[1642663914903,1.00417419,41991.0,41987.0,0.24]
[1642663915705,1.00417419,41991.0,41987.0,0.25]
[1642663915909,1.00308005,41991.0,41987.0,0.25]
[1642663916105,1.00417419,41991.0,41987.0,0.25]
[1642663916907,1.00417419,41991.0,41987.0,0.24]
[1642663917204,1.00308005,41991.0,41987.0,0.24]
[1642663917406,1.00417419,41991.0,41987.0,0.24]
[1642663917607,1.00417419,41991.0,41987.0,0.247]
[1642663918255,1.00308005,41991.0,41987.0,0.247]
[1642663918460,1.00417419,41991.0,41987.0,0.247]
[1642663919453,1.00417419,41991.0,41987.0,0.24]
[1642663919454,1.00308005,41991.0,41987.0,0.24]
[1642663919653,1.00417419,41991.0,41987.0,0.249]
[1642663920654,1.00308005,41991.0,41987.0,0.249]
[1642663920854,1.00417419,41991.0,41987.0,0.24]
[1642663921704,1.00417419,41991.0,41987.0,0.246]
[1642663921903,1.00308005,41991.0,41987.0,0.246]
[1642663922103,1.00417419,41991.0,41987.0,0.246]
[1642663922302,1.00350819,41991.0,41987.0,0.246]
[1642663922910,1.00350819,41991.0,41987.0,0.24]
[1642663923104,1.00241405,41991.0,41987.0,0.24]
[1642663923305,1.00350819,41991.0,41987.0,0.24]
[1642663923712,1.00350819,41991.0,41987.0,0.247]
[1642663924407,1.00241405,41991.0,41987.0,0.247]
[1642663924605,1.00350819,41991.0,41987.0,0.247]
[1642663925005,1.00350819,41991.0,41987.0,0.24]
[1642663925455,1.00241405,41991.0,41987.0,0.24]
[1642663925655,1.00350819,41991.0,41987.0,0.246]
[1642663926656,1.00241405,41991.0,41987.0,0.246]
[1642663926858,1.00350819,41991.0,41987.0,0.24]
[1642663927656,1.00350819,41991.0,41987.0,0.247]
[1642663927857,1.00241405,41991.0,41987.0,0.247]
[1642663928057,1.00350819,41991.0,41987.0,0.247]